fUSD/lending_fUSD_20260626
["ID","MTS","AMOUNT","RATE_DAILY","PERIOD"]
[426464200,1782420646000,-193.72229732,0.00022262,2]
[426464202,1782420646000,-491.0,0.00022262,2]
[426464201,1782420646000,-1277.0,0.00022262,2]
[426464194,1782420646000,-1000.0,0.00021917,2]
[426464206,1782420646000,-3.03650268,0.00022262,2]
[426464195,1782420646000,-1000.0,0.00021917,2]
[426464198,1782420646000,-1412.3679208,0.000222,2]
[426464196,1782420646000,-1000.0,0.00021917,2]
[426464197,1782420646000,-121.96575353,0.00022055,2]
[426464203,1782420646000,-1234.844,0.00022262,2]
[426464204,1782420646000,-150.0,0.00022262,2]
[426464207,1782420646000,-335.58,0.00021999,2]
[426464205,1782420646000,-200.0,0.00022262,2]
[426464193,1782420646000,-1000.0,0.00021917,2]
[426464217,1782420668000,1421.88684329,7.945e-05,2]
[426464216,1782420668000,1412.12954571,7.945e-05,2]
[426464218,1782420678000,300.56162022,0.00037252,120]
[426464219,1782420722000,1000.001995,0.00037252,120]
[426464229,1782421059000,951.41,0.0001,2]
[426464232,1782421059000,2450.16417124,0.0001,2]
[426464231,1782421059000,2404.95731919,0.0001,2]
[426464233,1782421059000,149.45660346,0.0001,2]
[426464230,1782421059000,2103.01169493,0.0001,2]
[426464238,1782421065000,1853.44745189,9.04e-05,2]
[426464239,1782421065000,11908.37843745,9.04e-05,2]
[426464237,1782421065000,2048.60441811,9.04e-05,2]
[426464235,1782421065000,2038.82174946,9.04e-05,2]
[426464236,1782421065000,2038.82174946,9.04e-05,2]
[426464234,1782421065000,1834.89723554,9.04e-05,2]
[426464243,1782421730000,129643.27,0.00037261,120]
[426464260,1782421831000,-14232.24,0.00013,2]
[426464263,1782421831000,-4496.33089748,0.00013,2]
[426464258,1782421831000,-166.66,0.00012934,2]
[426464261,1782421831000,-27796.600279,0.00013,2]
[426464259,1782421831000,-12044.2,0.00013,2]
[426464257,1782421831000,-160.0,0.00012706,2]
[426464255,1782421831000,-276.61,0.0001267,2]
[426464253,1782421831000,-1870.709721,0.00012523,2]
[426464254,1782421831000,-150.0,0.00012587,2]
[426464264,1782421831000,-500.0,0.00013,2]
[426464252,1782421831000,-166.66,0.00012422,2]
[426464250,1782421831000,-166.66,0.00012166,2]
[426464251,1782421831000,-250.0,0.00012294,2]
[426464256,1782421831000,-166.66,0.00012678,2]
[426464262,1782421831000,-499.07432918,0.00013,2]
[426464280,1782421831000,-8271.56,0.00013,2]
[426464267,1782421831000,-49562.23372064,0.00013,2]
[426464265,1782421831000,-300.0,0.00013,2]
[426464281,1782421831000,-9999.99,0.00013,2]
[426464279,1782421831000,-436.54,0.00013,2]
[426464276,1782421831000,-1000.0,0.00013,2]
[426464273,1782421831000,-421.19,0.00013,2]
[426464275,1782421831000,-1000.0,0.00013,2]
[426464274,1782421831000,-1000.0,0.00013,2]
[426464278,1782421831000,-5187.19252122,0.00013,2]
[426464272,1782421831000,-2259.94,0.00013,2]
[426464271,1782421831000,-1494.66,0.00013,2]
[426464270,1782421831000,-1585.37,0.00013,2]
[426464269,1782421831000,-1200.29,0.00013,2]
[426464268,1782421831000,-299.99,0.00013,2]
[426464266,1782421831000,-499.1807737,0.00013,2]
[426464277,1782421831000,-1000.0,0.00013,2]
[426464321,1782421832000,-643.7042787,0.00013689,2]
[426464322,1782421832000,-500.0,0.00013689,2]
[426464319,1782421832000,-500.0,0.00013689,2]
[426464318,1782421832000,-500.0,0.00013689,2]
[426464317,1782421832000,-162.39532069,0.00013689,2]
[426464315,1782421832000,-500.0,0.00013689,2]
[426464314,1782421832000,-500.0,0.00013689,2]
[426464313,1782421832000,-450.24715561,0.00013689,2]
[426464309,1782421832000,-500.0,0.00013689,2]
[426464320,1782421832000,-500.0,0.00013689,2]
[426464316,1782421832000,-500.0,0.00013689,2]
[426464323,1782421832000,-500.0,0.00013689,2]
[426464330,1782421832000,-500.0,0.00013689,2]
[426464325,1782421832000,-500.0,0.00013689,2]
[426464327,1782421832000,-500.0,0.00013689,2]
[426464326,1782421832000,-245.65939354,0.00013689,2]
[426464332,1782421832000,-500.0,0.00013689,2]
[426464331,1782421832000,-500.0,0.00013689,2]
[426464328,1782421832000,-500.0,0.00013689,2]
[426464306,1782421832000,-197.70806861,0.0001368,2]
[426464334,1782421832000,-500.0,0.00013689,2]
[426464329,1782421832000,-500.0,0.00013689,2]
[426464333,1782421832000,-500.0,0.00013689,2]
[426464335,1782421832000,-500.0,0.00013689,2]
[426464336,1782421832000,-500.0,0.00013689,2]
[426464324,1782421832000,-500.0,0.00013689,2]
[426464305,1782421832000,-3404.65,0.0001368,2]
[426464300,1782421832000,-166.66,0.00013447,2]
[426464310,1782421832000,-280.55781229,0.00013689,2]
[426464283,1782421832000,-9999.99,0.00013,2]
[426464284,1782421832000,-9999.99,0.00013,2]
[426464285,1782421832000,-999.99,0.00013,2]
[426464282,1782421832000,-150.99,0.00013,2]
[426464289,1782421832000,-3758.5,0.00013,2]
[426464291,1782421832000,-1046.41,0.00013,2]
[426464290,1782421832000,-1658.46,0.00013,2]
[426464286,1782421832000,-1564.24,0.00013,2]
[426464287,1782421832000,-9999.99,0.00013,2]
[426464288,1782421832000,-4999.99,0.00013,2]
[426464292,1782421832000,-499.99,0.00013,2]
[426464293,1782421832000,-152.57,0.00013115,2]
[426464294,1782421832000,-256.95,0.00013116,2]
[426464295,1782421832000,-166.66,0.00013191,2]
[426464296,1782421832000,-166.9,0.00013284,2]
[426464297,1782421832000,-250.0,0.00013383,2]
[426464298,1782421832000,-275.79675041,0.00013383,2]
[426464299,1782421832000,-312.10002489,0.00013383,2]
[426464301,1782421832000,-394.16,0.00013462,2]
[426464337,1782421832000,-500.0,0.00013689,2]
[426464303,1782421832000,-256.3548876,0.00013599,2]
[426464307,1782421832000,-150.0,0.00013688,2]
[426464311,1782421832000,-500.0,0.00013689,2]
[426464308,1782421832000,-3797.27592096,0.00013689,2]
[426464304,1782421832000,-3404.65,0.0001368,2]
[426464312,1782421832000,-221.47642255,0.00013689,2]
[426464341,1782421832000,-500.0,0.00013689,2]
[426464302,1782421832000,-185.41,0.00013579,2]
[426464342,1782421832000,-500.0,0.00013689,2]
[426464370,1782421832000,-500.0,0.00013689,2]
[426464371,1782421832000,-500.0,0.00013689,2]
[426464374,1782421832000,-500.0,0.00013689,2]
[426464372,1782421832000,-500.0,0.00013689,2]
[426464382,1782421832000,-500.0,0.00013689,2]
[426464381,1782421832000,-500.0,0.00013689,2]
[426464376,1782421832000,-500.0,0.00013689,2]
[426464377,1782421832000,-500.0,0.00013689,2]
[426464383,1782421832000,-322.4564023,0.00013689,2]
[426464378,1782421832000,-500.0,0.00013689,2]
[426464373,1782421832000,-500.0,0.00013689,2]
[426464380,1782421832000,-500.0,0.00013689,2]
[426464375,1782421832000,-318.44339158,0.00013689,2]
[426464379,1782421832000,-500.0,0.00013689,2]
[426464384,1782421832000,-500.0,0.00013689,2]
[426464386,1782421832000,-500.0,0.00013689,2]
[426464385,1782421832000,-277.6150154,0.00013689,2]
[426464388,1782421832000,-500.0,0.00013689,2]
[426464393,1782421832000,-274.30601533,0.00013689,2]
[426464387,1782421832000,-277.6150154,0.00013689,2]
[426464389,1782421832000,-277.6150154,0.00013689,2]
[426464394,1782421832000,-500.0,0.00013689,2]
[426464395,1782421832000,-274.30601533,0.00013689,2]
[426464392,1782421832000,-500.0,0.00013689,2]
[426464391,1782421832000,-277.6150154,0.00013689,2]
[426464368,1782421832000,-500.0,0.00013689,2]
[426464366,1782421832000,-500.0,0.00013689,2]
[426464390,1782421832000,-500.0,0.00013689,2]
[426464369,1782421832000,-500.0,0.00013689,2]
[426464348,1782421832000,-500.0,0.00013689,2]
[426464347,1782421832000,-500.0,0.00013689,2]
[426464338,1782421832000,-500.0,0.00013689,2]
[426464345,1782421832000,-500.0,0.00013689,2]
[426464343,1782421832000,-500.0,0.00013689,2]
[426464367,1782421832000,-500.0,0.00013689,2]
[426464339,1782421832000,-500.0,0.00013689,2]
[426464346,1782421832000,-500.0,0.00013689,2]
[426464349,1782421832000,-500.0,0.00013689,2]
[426464350,1782421832000,-647.17820999,0.00013689,2]
[426464351,1782421832000,-500.0,0.00013689,2]
[426464352,1782421832000,-500.0,0.00013689,2]
[426464357,1782421832000,-500.0,0.00013689,2]
[426464344,1782421832000,-500.0,0.00013689,2]
[426464354,1782421832000,-500.0,0.00013689,2]
[426464356,1782421832000,-500.0,0.00013689,2]
[426464363,1782421832000,-500.0,0.00013689,2]
[426464365,1782421832000,-500.0,0.00013689,2]
[426464364,1782421832000,-500.0,0.00013689,2]
[426464361,1782421832000,-500.0,0.00013689,2]
[426464362,1782421832000,-500.0,0.00013689,2]
[426464340,1782421832000,-500.0,0.00013689,2]
[426464360,1782421832000,-500.0,0.00013689,2]
[426464359,1782421832000,-500.0,0.00013689,2]
[426464353,1782421832000,-500.0,0.00013689,2]
[426464358,1782421832000,-500.0,0.00013689,2]
[426464355,1782421832000,-500.0,0.00013689,2]
[426464397,1782421833000,-274.30601533,0.00013689,2]
[426464399,1782421833000,-4735.47382061,0.0001369,2]
[426464398,1782421833000,-56791.35987091,0.0001369,2]
[426464396,1782421833000,-500.0,0.00013689,2]
[426464401,1782421839000,-946.99,0.00012461,2]
[426464403,1782421840000,-1292.3183,0.0001369,2]
[426464402,1782421840000,-52.6717,0.00012461,2]
[426464404,1782421840000,-522.9232407,0.0001369,2]
[426464432,1782421841000,-312.10229684,0.0001379,2]
[426464423,1782421841000,-2813.72202121,0.0001369,2]
[426464424,1782421841000,-500.0,0.0001369,2]
[426464425,1782421841000,-1433344.20274657,0.0001369,2]
[426464429,1782421841000,-1116.85397065,0.00013699,15]
[426464428,1782421841000,-1000.0,0.00013699,15]
[426464426,1782421841000,-1000.0,0.00013699,2]
[426464431,1782421841000,-204.395,0.00013789,2]
[426464430,1782421841000,-3021.788,0.00013789,2]
[426464434,1782421841000,-822.22625349,0.0001379,2]
[426464433,1782421841000,-2899.81774203,0.0001379,2]
[426464435,1782421841000,-600.0,0.00013817,2]
[426464436,1782421841000,-184.63828196,0.00013821,2]
[426464437,1782421841000,-160.0,0.00013836,2]
[426464438,1782421841000,-797.51,0.00013863,2]
[426464427,1782421841000,-1000.0,0.00013699,2]
[426464520,1782421842000,-230.07532635,0.000162,2]
[426464507,1782421842000,-184.0,0.00015663,2]
[426464511,1782421842000,-300.0,0.00016,2]
[426464513,1782421842000,-230.07532635,0.00016,2]
[426464518,1782421842000,-230.07532635,0.000161,2]
[426464499,1782421842000,-3797.27592095,0.00015201,2]
[426464516,1782421842000,-184.0,0.00016036,2]
[426464503,1782421842000,-2899.81774202,0.00015469,2]
[426464522,1782421842000,-184.0,0.00016409,2]
[426464505,1782421842000,-166.9,0.00015476,2]
[426464495,1782421842000,-368599.12382766,0.00015,2]
[426464509,1782421842000,-185.41,0.00015842,2]
[426464524,1782421842000,-25262.83842943,0.00016703,2]
[426464537,1782421842000,-185.41,0.00018106,2]
[426464533,1782421842000,-2899.81774202,0.00017148,2]
[426464531,1782421842000,-312.10229678,0.00016996,2]
[426464501,1782421842000,-184.0,0.0001529,2]
[426464528,1782421842000,-394.16,0.00016828,2]
[426464535,1782421842000,-350.0,0.00018,2]
[426464539,1782421842000,-3797.27592095,0.00018225,2]
[426464543,1782421842000,-2899.81774202,0.00018827,2]
[426464541,1782421842000,-394.16,0.0001851,2]
[426464547,1782421842000,-3797.27592095,0.00019737,2]
[426464545,1782421842000,-305.27323533,0.00019339,2]
[426464549,1782421842000,-821.0,0.0002,2]
[426464551,1782421842000,-929.0,0.0002,2]
[426464555,1782421842000,-221.0,0.0002,2]
[426464564,1782421842000,-1099.0,0.0002,2]
[426464526,1782421842000,-3797.27592095,0.00016713,2]
[426464497,1782421842000,-394.16,0.00015145,2]
[426464475,1782421842000,-500.0,0.00014967,2]
[426464469,1782421842000,-184.0,0.00014917,2]
[426464444,1782421842000,-500.0,0.00013889,2]
[426464440,1782421842000,-331.18291848,0.00013889,2]
[426464439,1782421842000,-500.0,0.00013889,2]
[426464553,1782421842000,-383.0,0.0002,2]
[426464442,1782421842000,-566.20912469,0.00013889,2]
[426464443,1782421842000,-503.44436268,0.00013889,2]
[426464445,1782421842000,-500.0,0.00013889,2]
[426464448,1782421842000,-153.0,0.0001389,2]
[426464449,1782421842000,-250.0,0.00013901,2]
[426464446,1782421842000,-500.0,0.00013889,2]
[426464450,1782421842000,-216.45114417,0.00013905,2]
[426464458,1782421842000,-166.9,0.00014014,2]
[426464452,1782421842000,-810.93,0.00013965,2]
[426464447,1782421842000,-500.0,0.00013889,2]
[426464454,1782421842000,-21204.57416659,0.0001399,2]
[426464456,1782421842000,-250.0,0.00014,2]
[426464462,1782421842000,-164.02,0.00014285,2]
[426464460,1782421842000,-200.0,0.00014115,2]
[426464465,1782421842000,-166.9,0.00014745,2]
[426464467,1782421842000,-255.0,0.00014811,2]
[426464477,1782421842000,-500.0,0.00014967,2]
[426464480,1782421842000,-500.0,0.00014967,2]
[426464473,1782421842000,-500.0,0.00014967,2]
[426464471,1782421842000,-500.0,0.00014967,2]
[426464486,1782421842000,-500.0,0.00014967,2]
[426464492,1782421842000,-500.0,0.00014967,2]
[426464483,1782421842000,-500.0,0.00014967,2]
[426464481,1782421842000,-500.0,0.00014967,2]
[426464493,1782421842000,-500.0,0.00014999,2]
[426464488,1782421842000,-500.0,0.00014967,2]
[426464557,1782421842000,-502.0,0.0002,2]
[426464441,1782421842000,-500.0,0.00013889,2]
[426464562,1782421842000,-260.0,0.0002,2]
[426464631,1782421842000,-151.0,0.00020866,2]
[426464637,1782421842000,-151.0,0.00020866,2]
[426464649,1782421842000,-929.0,0.00021,2]
[426464651,1782421842000,-383.0,0.00021,2]
[426464639,1782421842000,-151.0,0.00020866,2]
[426464653,1782421842000,-221.0,0.00021,2]
[426464641,1782421842000,-151.0,0.00020866,2]
[426464633,1782421842000,-151.0,0.00020866,2]
[426464655,1782421842000,-502.0,0.00021,2]
[426464635,1782421842000,-151.0,0.00020866,2]
[426464657,1782421842000,-214.0,0.00021,2]
[426464659,1782421842000,-260.0,0.00021,2]
[426464661,1782421842000,-1099.0,0.00021,2]
[426464667,1782421842000,-520.0,0.00021,2]
[426464663,1782421842000,-329.0,0.00021,2]
[426464665,1782421842000,-154.0,0.00021,2]
[426464671,1782421842000,-252.0,0.00021,2]
[426464673,1782421842000,-500.0,0.00021108,2]
[426464675,1782421842000,-500.0,0.00021108,2]
[426464669,1782421842000,-609.0,0.00021,2]
[426464680,1782421842000,-214.71556441,0.000212,2]
[426464678,1782421842000,-233.36793174,0.000212,2]
[426464681,1782421842000,-1307.49180436,0.000212,2]
[426464684,1782421842000,-169.89031679,0.000212,2]
[426464685,1782421842000,-326.60250514,0.00021207,2]
[426464689,1782421842000,-256.3548876,0.0002125,2]
[426464693,1782421842000,-233.36793174,0.000214,2]
[426464691,1782421842000,-171.4893265,0.00021259,2]
[426464561,1782421842000,-214.0,0.0002,2]
[426464645,1782421842000,-265.713336,0.00020972,2]
[426464647,1782421842000,-821.0,0.00021,2]
[426464687,1782421842000,-3797.27592095,0.00021249,2]
[426464629,1782421842000,-151.0,0.00020866,2]
[426464643,1782421842000,-220.205878,0.00020972,2]
[426464559,1782421842000,-170.180181,0.0002,2]
[426464568,1782421842000,-154.0,0.0002,2]
[426464566,1782421842000,-329.0,0.0002,2]
[426464570,1782421842000,-500.0,0.0002,2]
[426464576,1782421842000,-609.0,0.0002,2]
[426464572,1782421842000,-4335.0,0.0002,2]
[426464574,1782421842000,-520.0,0.0002,2]
[426464580,1782421842000,-10000.31,0.0002,2]
[426464591,1782421842000,-185.41,0.00020369,2]
[426464593,1782421842000,-2899.81774202,0.00020506,2]
[426464594,1782421842000,-774.67,0.00020548,2]
[426464587,1782421842000,-394.16,0.00020193,2]
[426464583,1782421842000,-252.0,0.0002,2]
[426464585,1782421842000,-185.76,0.0002008,2]
[426464596,1782421842000,-10828.14,0.00020548,2]
[426464589,1782421842000,-312.10229678,0.00020202,2]
[426464603,1782421842000,-151.0,0.00020866,2]
[426464617,1782421842000,-151.0,0.00020866,2]
[426464621,1782421842000,-151.0,0.00020866,2]
[426464627,1782421842000,-151.0,0.00020866,2]
[426464614,1782421842000,-151.0,0.00020866,2]
[426464619,1782421842000,-151.0,0.00020866,2]
[426464606,1782421842000,-151.0,0.00020866,2]
[426464625,1782421842000,-151.0,0.00020866,2]
[426464598,1782421842000,-151.0,0.00020866,2]
[426464612,1782421842000,-151.0,0.00020866,2]
[426464623,1782421842000,-151.0,0.00020866,2]
[426464609,1782421842000,-151.0,0.00020866,2]
[426464600,1782421842000,-151.0,0.00020866,2]
[426464779,1782421843000,-150.0,0.00022262,2]
[426464769,1782421843000,-151.0,0.0002224,2]
[426464771,1782421843000,-166.0,0.00022262,2]
[426464775,1782421843000,-274.96349732,0.00022262,2]
[426464760,1782421843000,-213.39448711,0.00022018,2]
[426464777,1782421843000,-175.0,0.00022262,2]
[426464781,1782421843000,-243.435,0.00022262,2]
[426464773,1782421843000,-151.0,0.00022262,2]
[426464761,1782421843000,-233.36793174,0.000221,2]
[426464763,1782421843000,-1307.49180436,0.000221,2]
[426464767,1782421843000,-473.48355894,0.00022195,2]
[426464765,1782421843000,-2899.81774202,0.00022184,2]
[426464783,1782421843000,-150.0,0.00022262,2]
[426464809,1782421843000,-2010.64,0.00022562,2]
[426464789,1782421843000,-1361.0,0.00022262,2]
[426464787,1782421843000,-1277.0,0.00022262,2]
[426464791,1782421843000,-383.0,0.00022262,2]
[426464795,1782421843000,-6084.0,0.00022262,2]
[426464793,1782421843000,-1230.0,0.00022262,2]
[426464797,1782421843000,-216.0,0.00022262,2]
[426464799,1782421843000,-1307.49180436,0.000223,2]
[426464805,1782421843000,-176.2026411,0.00022356,2]
[426464803,1782421843000,-603.60792332,0.00022352,2]
[426464801,1782421843000,-246.62,0.000223,7]
[426464807,1782421843000,-1307.49180436,0.000225,2]
[426464811,1782421843000,-1307.49180436,0.000227,2]
[426464752,1782421843000,-520.0,0.00022,2]
[426464815,1782421843000,-150.0,0.0002274,2]
[426464785,1782421843000,-150.0,0.00022262,2]
[426464750,1782421843000,-154.0,0.00022,2]
[426464718,1782421843000,-155.32468266,0.000219,4]
[426464748,1782421843000,-329.0,0.00022,2]
[426464823,1782421843000,-500.0,0.0002274,2]
[426464695,1782421843000,-214.71556441,0.000214,2]
[426464697,1782421843000,-1307.49180436,0.000214,2]
[426464707,1782421843000,-233.36793174,0.000216,2]
[426464701,1782421843000,-151.0,0.000214,2]
[426464699,1782421843000,-169.89031679,0.000214,2]
[426464705,1782421843000,-1692.45,0.00021569,2]
[426464703,1782421843000,-168.234652,0.00021513,2]
[426464709,1782421843000,-1307.49180436,0.000216,2]
[426464722,1782421843000,-664.42,0.00021917,2]
[426464714,1782421843000,-1307.49180436,0.000219,2]
[426464720,1782421843000,-238.19819717,0.000219,2]
[426464712,1782421843000,-233.36793174,0.000219,2]
[426464754,1782421843000,-609.0,0.00022,2]
[426464728,1782421843000,-666.0,0.00021951,2]
[426464730,1782421843000,-254322.7643593,0.00021952,2]
[426464716,1782421843000,-1257.32304766,0.000219,2]
[426464726,1782421843000,-300.0,0.00021951,2]
[426464732,1782421843000,-821.0,0.00022,2]
[426464734,1782421843000,-929.0,0.00022,2]
[426464736,1782421843000,-383.0,0.00022,2]
[426464740,1782421843000,-502.0,0.00022,2]
[426464742,1782421843000,-214.0,0.00022,2]
[426464744,1782421843000,-260.0,0.00022,2]
[426464746,1782421843000,-1099.0,0.00022,2]
[426464756,1782421843000,-1894.53,0.00022,2]
[426464757,1782421843000,-252.0,0.00022,2]
[426464758,1782421843000,-405.67763046,0.00022006,2]
[426464724,1782421843000,-5000.0,0.00021918,2]
[426464829,1782421843000,-432.84396056,0.0002274,2]
[426464738,1782421843000,-221.0,0.00022,2]
[426464817,1782421843000,-173.74778307,0.0002274,2]
[426464888,1782421843000,-566.73223707,0.0002274,2]
[426464893,1782421843000,-500.0,0.0002274,2]
[426464895,1782421843000,-619.84660301,0.0002274,2]
[426464897,1782421843000,-152.19371287,0.0002274,2]
[426464901,1782421843000,-446.0,0.0002274,2]
[426464899,1782421843000,-500.0,0.0002274,2]
[426464890,1782421843000,-500.0,0.0002274,2]
[426464911,1782421843000,-446.0,0.0002274,2]
[426464903,1782421843000,-500.0,0.0002274,2]
[426464905,1782421843000,-446.0,0.0002274,2]
[426464915,1782421843000,-958.0,0.0002274,2]
[426464909,1782421843000,-500.0,0.0002274,2]
[426464907,1782421843000,-446.0,0.0002274,2]
[426464877,1782421843000,-254.48877466,0.0002274,2]
[426464913,1782421843000,-500.0,0.0002274,2]
[426464921,1782421843000,-446.0,0.0002274,2]
[426464917,1782421843000,-500.0,0.0002274,2]
[426464925,1782421843000,-500.0,0.0002274,2]
[426464923,1782421843000,-958.0,0.0002274,2]
[426464926,1782421843000,-446.0,0.0002274,2]
[426464928,1782421843000,-958.0,0.0002274,2]
[426464933,1782421843000,-446.0,0.0002274,2]
[426464931,1782421843000,-500.0,0.0002274,2]
[426464937,1782421843000,-958.0,0.0002274,2]
[426464935,1782421843000,-500.0,0.0002274,2]
[426464940,1782421843000,-446.0,0.0002274,2]
[426464944,1782421843000,-500.0,0.0002274,2]
[426464819,1782421843000,-500.0,0.0002274,2]
[426464919,1782421843000,-446.0,0.0002274,2]
[426464878,1782421843000,-500.0,0.0002274,2]
[426464942,1782421843000,-958.0,0.0002274,2]
[426464880,1782421843000,-500.0,0.0002274,2]
[426464871,1782421843000,-500.0,0.0002274,2]
[426464821,1782421843000,-515.0179115,0.0002274,2]
[426464825,1782421843000,-500.0,0.0002274,2]
[426464831,1782421843000,-150.0,0.0002274,2]
[426464827,1782421843000,-500.0,0.0002274,2]
[426464833,1782421843000,-150.0,0.0002274,2]
[426464837,1782421843000,-500.0,0.0002274,2]
[426464835,1782421843000,-188.64253889,0.0002274,2]
[426464813,1782421843000,-150.0,0.0002274,2]
[426464843,1782421843000,-496.23414018,0.0002274,2]
[426464846,1782421843000,-606.10651734,0.0002274,2]
[426464856,1782421843000,-500.0,0.0002274,2]
[426464858,1782421843000,-500.0,0.0002274,2]
[426464844,1782421843000,-500.0,0.0002274,2]
[426464840,1782421843000,-500.0,0.0002274,2]
[426464862,1782421843000,-500.0,0.0002274,2]
[426464875,1782421843000,-500.0,0.0002274,2]
[426464839,1782421843000,-500.0,0.0002274,2]
[426464884,1782421843000,-500.0,0.0002274,2]
[426464886,1782421843000,-500.0,0.0002274,2]
[426464882,1782421843000,-500.0,0.0002274,2]
[426464872,1782421843000,-500.0,0.0002274,2]
[426464868,1782421843000,-500.0,0.0002274,2]
[426464866,1782421843000,-500.0,0.0002274,2]
[426464854,1782421843000,-500.0,0.0002274,2]
[426464860,1782421843000,-500.0,0.0002274,2]
[426464850,1782421843000,-500.0,0.0002274,2]
[426464852,1782421843000,-500.0,0.0002274,2]
[426464849,1782421843000,-500.0,0.0002274,2]
[426464864,1782421843000,-500.0,0.0002274,2]
[426465026,1782421844000,-958.0,0.0002274,2]
[426465028,1782421844000,-500.0,0.0002274,2]
[426465030,1782421844000,-500.0,0.0002274,2]
[426465024,1782421844000,-500.0,0.0002274,2]
[426465005,1782421844000,-446.0,0.0002274,2]
[426465020,1782421844000,-500.0,0.0002274,2]
[426465022,1782421844000,-500.0,0.0002274,2]
[426465015,1782421844000,-500.0,0.0002274,2]
[426465017,1782421844000,-446.0,0.0002274,2]
[426465009,1782421844000,-500.0,0.0002274,2]
[426465035,1782421844000,-446.0,0.0002274,2]
[426465037,1782421844000,-500.0,0.0002274,2]
[426465074,1782421844000,-500.0,0.0002274,2]
[426465057,1782421844000,-500.0,0.0002274,2]
[426465045,1782421844000,-500.0,0.0002274,2]
[426465039,1782421844000,-958.0,0.0002274,2]
[426465043,1782421844000,-500.0,0.0002274,2]
[426465056,1782421844000,-500.0,0.0002274,2]
[426465052,1782421844000,-500.0,0.0002274,2]
[426465058,1782421844000,-500.0,0.0002274,2]
[426465047,1782421844000,-500.0,0.0002274,2]
[426465041,1782421844000,-500.0,0.0002274,2]
[426465049,1782421844000,-500.0,0.0002274,2]
[426465054,1782421844000,-446.0,0.0002274,2]
[426465059,1782421844000,-500.0,0.0002274,2]
[426465003,1782421844000,-958.0,0.0002274,2]
[426465033,1782421844000,-615.02804069,0.0002274,2]
[426465001,1782421844000,-500.0,0.0002274,2]
[426464978,1782421844000,-500.0,0.0002274,2]
[426465013,1782421844000,-500.0,0.0002274,2]
[426465078,1782421844000,-500.0,0.0002274,2]
[426464946,1782421844000,-446.0,0.0002274,2]
[426464952,1782421844000,-500.0,0.0002274,2]
[426464948,1782421844000,-500.0,0.0002274,2]
[426464954,1782421844000,-446.0,0.0002274,2]
[426464950,1782421844000,-958.0,0.0002274,2]
[426464963,1782421844000,-446.0,0.0002274,2]
[426464961,1782421844000,-500.0,0.0002274,2]
[426464959,1782421844000,-500.0,0.0002274,2]
[426464957,1782421844000,-958.0,0.0002274,2]
[426464974,1782421844000,-176.07172224,0.0002274,2]
[426464967,1782421844000,-500.0,0.0002274,2]
[426464970,1782421844000,-446.0,0.0002274,2]
[426465007,1782421844000,-500.0,0.0002274,2]
[426464972,1782421844000,-958.0,0.0002274,2]
[426464969,1782421844000,-500.0,0.0002274,2]